[Event "WTCC-50 2018"]
[Site "Radebeul"]
[Date "2018.07.11"]
[Round "5"]
[White "Sazonova, Elena N"]
[Black "Thurstan, Tim M"]
[Result "1/2-1/2"]
[ECO "C11"]
[WhiteElo "2146"]
[BlackElo "2035"]
[Annotator "NA"]
[PlyCount "119"]
[EventDate "2018.07.07"]
[EventType "team-tourn"]
[EventCountry "GER"]
[SourceTitle "playchess.com"]
[Source "ChessBase"]
[SourceQuality "1"]
[TimeControl "40/5400+30:1800+30"]

1. e4 {[%emt 0:00:00]} e6 {[%emt 0:00:00]} 2. Nf3 {[%emt 0:00:00]} d5 {[%emt 0:00:00]} 3. Nc3 {[%emt 0:00:00]} Nf6 {[%emt 0:00:16]} 4. e5 {[%emt 0:00:06]} Nfd7 {[%emt 0:00:06]} 5. d4 {[%emt 0:00:05]} b6 {[%emt 0:03:46]} 6. Ng5 {[%emt 0:11:01] C11: French: Classical System: 4 e5 and 4 Bg5 dxe4} (6. Bg5 Be7 7. Bxe7 Qxe7 8. Nb5 Qd8 9. Bd3 Ba6 10. h4 Bxb5 11. Bxb5 c6 12. Bd3 c5 13. c3 Nc6 {½-½ (53) Sadovsky,A (2414)-Stupak,K (2564) St Petersburg 2016}) 6... Ba6 $146 {[%emt 0:14:16]} ({Predecessor:} 6... g6 7. Qf3 Qe7 8. Nb5 Na6 9. Bd3 h6 10. Qh3 Bg7 11. Nf3 Nf8 12. c3 Nb8 13. O-O a6 {½-½ (51) Languidey,S (2360)-Fernandes Filho,B (2108) Florianopolis 2018}) 7. Qh5 {[%emt 0:16:05]} Qe7 {[%emt 0:06:42]} 8. h4 {[%emt 0:08:07]} g6 {[%emt 0:08:36]} 9. Qg4 {[%emt 0:03:45]} h5 {[%emt 0:07:22]} 10. Qf3 {[%emt 0:03:41]} Bg7 {[%emt 0:07:41]} 11. Nb5 {[%emt 0:06:55]} Bxb5 {[%emt 0:04:07]} 12. Bxb5 {[%emt 0:00:07]} c6 {[%emt 0:07:13]} 13. Bd3 {[%emt 0:01:30]} Nf8 {[%emt 0:00:49]} 14. Bd2 {[%emt 0:01:54]} f5 {[%emt 0:06:09]} 15. O-O-O {[%emt 0:04:33]} Nbd7 {[%emt 0:03:12]} 16. c4 {[%emt 0:02:13]} Rc8 {[%emt 0:03:10]} 17. Kb1 {[%emt 0:00:25]} dxc4 {[%emt 0:04:24]} 18. Bxc4 {[%emt 0:00:07]} b5 {[%emt 0:01:27]} 19. Be2 {[%emt 0:03:00]} Nb6 {[%emt 0:00:34]} 20. Rc1 {[%emt 0:00:42]} Qd7 {[%emt 0:01:48]} 21. Rhd1 {[%emt 0:05:44]} a6 {[%emt 0:02:13]} 22. Bb4 {[%emt 0:00:53]} Nd5 {[%emt 0:02:23]} 23. Bd6 {[%emt 0:01:07]} Nh7 {[%emt 0:01:26]} 24. Qa3 {[%emt 0:03:27]} Nxg5 {[%emt 0:00:29]} 25. hxg5 {[%emt 0:00:07]} Qb7 {[%emt 0:01:15]} 26. Bf3 {[%emt 0:01:25]} Kf7 {[%emt 0:01:14]} 27. Rc2 {[%emt 0:04:09]} Rhd8 28. Rdc1 {[%emt 0:02:31]} Bf8 {[%emt 0:08:52]} 29. Bxd5 {[%emt 0:03:24]} cxd5 {[%emt 0:01:10]} 30. Qa5 {[%emt 0:02:15]} Rxc2 {[%emt 0:01:57]} 31. Qxd8 {[%emt 0:01:14]} Rxc1+ {[%emt 0:00:18]} 32. Kxc1 {[%emt 0:00:07]} Bg7 {[%emt 0:01:53]} 33. a3 {[%emt 0:05:42]} b4 {[%emt 0:00:58]} 34. axb4 {[%emt 0:00:38]} Qb5 {[%emt 0:00:15]} 35. Qc7+ {[%emt 0:05:59]} Kg8 {[%emt 0:00:06]} 36. Kb1 {[%emt 0:00:18]} Qd3+ {[%emt 0:01:07]} 37. Ka2 {[%emt 0:00:48]} Qxd4 {[%emt 0:00:34]} 38. Qc8+ {[%emt 0:01:30]} Kh7 {[%emt 0:00:28]} 39. Qxa6 {[%emt 0:00:26]} Bxe5 {[%emt 0:00:13]} 40. Bxe5 {[%emt 0:01:02]} Qxe5 {[%emt 0:00:05]} 41. b5 {[%emt 0:31:13]} d4 {[%emt 0:06:47]} 42. Qc6 {[%emt 0:00:00]} d3 {[%emt 0:05:28]} 43. Qd7+ {[%emt 0:00:00]} Kg8 {[%emt 0:00:11]} 44. Qd8+ {[%emt 0:00:00]} Kf7 {[%emt 0:01:34]} 45. Qd7+ {[%emt 0:00:00]} Kf8 {[%emt 0:00:29]} 46. Qxd3 {[%emt 0:00:00]} Ke8 {[%emt 0:02:49]} 47. Qc4 {[%emt 0:00:00]} Kd8 {[%emt 0:06:51]} 48. Kb3 {[%emt 0:00:00]} h4 {[%emt 0:02:39]} (48... Qd6 {might work better.} 49. Ka4 Kd7) 49. Qxh4 $11 {[%emt 0:00:00]} (49. b6 $18) 49... Qxb5+ {[%emt 0:00:22]} 50. Qb4 {[%emt 0:00:00]} Qd3+ {[%emt 0:03:02]} 51. Qc3 {[%emt 0:00:00]} Qd1+ {[%emt 0:00:26]} 52. Ka3 {[%emt 0:00:00]} Qd6+ {[%emt 0:00:36]} 53. b4 {[%emt 0:00:00]} e5 {[%emt 0:00:41]} 54. f3 {[%emt 0:00:00]} Qd5 {[%emt 0:01:25]} 55. Kb2 {[%emt 0:01:53]} Kd7 {[%emt 0:01:13]} 56. Kc1 {[%emt 0:01:51]} Qb5 {[%emt 0:00:23]} 57. Kd2 {[%emt 0:00:26]} Ke6 {[%emt 0:02:01]} 58. Qc8+ {[%emt 0:00:31]} Kd5 {[%emt 0:00:52]} 59. Kc3 {[%emt 0:00:49]} Qe2 {[%emt 0:01:25]} 60. Qd7# {[%emt 0:00:26] Kd4+} 1/2-1/2

[Event "WTCC-50 2018"]
[Site "Radebeul"]
[Date "2018.07.11"]
[Round "5"]
[White "Van den Bersselaar, Jeroen"]
[Black "Schulz, Klaus-Juergen"]
[Result "0-1"]
[ECO "A05"]
[WhiteElo "2142"]
[BlackElo "2324"]
[Annotator "NA"]
[PlyCount "54"]
[EventDate "2018.07.07"]
[EventType "team-tourn"]
[EventCountry "GER"]
[SourceTitle "playchess.com"]
[Source "ChessBase"]
[SourceQuality "1"]
[TimeControl "40/5400+30:1800+30"]

1. Nf3 {[%emt 0:00:00]} Nf6 {[%emt 0:01:43]} 2. c4 {[%emt 0:00:00]} e6 {[%emt 0:01:37]} 3. g3 {[%emt 0:00:31]} b6 {[%emt 0:11:48]} 4. Bg2 {[%emt 0:00:16]} Bb7 {[%emt 0:00:11]} 5. O-O {[%emt 0:00:41]} c5 {[%emt 0:06:21]} 6. b3 {[%emt 0:02:06]} d6 {[%emt 0:00:39]} 7. d4 {[%emt 0:04:42]} cxd4 {[%emt 0:05:08]} 8. Qxd4 {[%emt 0:00:08]} Nbd7 {[%emt 0:00:36]} 9. Nc3 {[%emt 0:04:09]} a6 {[%emt 0:00:21]} 10. Rd1 {[%emt 0:07:22]} Qc7 {[%emt 0:06:38]} 11. e4 {[%emt 0:10:35]} Be7 {[%emt 0:02:41]} 12. Ba3 {[%emt 0:01:23]} Nc5 {[%emt 0:01:32]} 13. e5 {[%emt 0:01:04]} dxe5 {[%emt 0:01:43]} 14. Nxe5 {[%emt 0:00:34]} Bxg2 {[%emt 0:01:54]} 15. Kxg2 {[%emt 0:00:03]} O-O {[%emt 0:03:03]} 16. Qe3 {[%emt 0:06:36]} Rfc8 {[%emt 0:21:42]} 17. f3 {[%emt 0:10:56]} Rd8 {[%emt 0:06:16]} 18. Ne2 {[%emt 0:11:50]} Nfd7 {[%emt 0:09:40]} 19. Nxd7 {[%emt 0:09:16]} Rxd7 {[%emt 0:00:04]} 20. b4 {[%emt 0:00:37]} Rxd1 {[%emt 0:03:59]} 21. Rxd1 {[%emt 0:00:15]} Nd7 {[%emt 0:00:08]} 22. Rc1 {[%emt 0:06:06]} Ne5 {[%emt 0:01:14]} 23. c5 {[%emt 0:01:50]} bxc5 {[%emt 0:01:02]} 24. bxc5 {[%emt 0:00:19]} Rd8 {[%emt 0:00:38]} 25. Nd4 {[%emt 0:05:37]} Rd5 {[%emt 0:00:11]} 26. f4 {[%emt 0:07:29]} Nc6 {[%emt 0:02:32]} 27. Nxe6 {[%emt 0:00:25]} Qd7 {[%emt 0:00:32]} 0-1

[Event "WTCC-50 2018"]
[Site "Radebeul"]
[Date "2018.07.11"]
[Round "5"]
[White "Barron, Michael"]
[Black "Nazarenus, Olaf"]
[Result "1-0"]
[ECO "B70"]
[WhiteElo "2123"]
[BlackElo "2082"]
[Annotator "NA"]
[PlyCount "107"]
[EventDate "2018.07.07"]
[EventType "team-tourn"]
[EventCountry "GER"]
[SourceTitle "playchess.com"]
[Source "ChessBase"]
[SourceQuality "1"]
[TimeControl "40/5400+30:1800+30"]

1. e4 {[%emt 0:00:00]} c5 {[%emt 0:00:00]} 2. Nf3 {[%emt 0:00:00]} d6 {[%emt 0:00:31]} 3. d4 {[%emt 0:00:00]} cxd4 {[%emt 0:00:06]} 4. Nxd4 {[%emt 0:00:02]} Nf6 {[%emt 0:00:10]} 5. Nc3 {[%emt 0:00:02]} g6 {[%emt 0:00:20]} 6. Be2 {[%emt 0:00:03]} Bg7 {[%emt 0:00:07]} 7. O-O {[%emt 0:00:07]} O-O {[%emt 0:00:05]} 8. Kh1 {[%emt 0:00:07]} Nc6 {[%emt 0:03:44]} 9. Nb3 {[%emt 0:00:03]} Be6 {[%emt 0:03:56]} 10. Bg5 {[%emt 0:00:57]} Rc8 {[%emt 0:01:59]} 11. f4 {[%emt 0:00:05]} Na5 {[%emt 0:01:38]} 12. Nd4 {[%emt 0:04:28]} Bc4 {[%emt 0:04:21]} 13. Re1 {[%emt 0:00:55]} Bxe2 {[%emt 0:04:20]} 14. Qxe2 {[%emt 0:04:47]} Nc4 {[%emt 0:00:42]} 15. Nd1 {[%emt 0:00:18]} h6 {[%emt 0:15:05]} 16. Bxf6 {[%emt 0:00:41]} Bxf6 {[%emt 0:00:14]} 17. c3 {[%emt 0:00:03]} Qb6 {[%emt 0:24:17]} 18. Nb3 {[%emt 0:05:18]} a5 {[%emt 0:03:32]} 19. Nd2 {[%emt 0:00:40]} Qc6 {[%emt 0:09:36]} 20. Nxc4 {[%emt 0:04:54]} Qxc4 {[%emt 0:00:04]} 21. Qf3 {[%emt 0:00:16]} Qb5 {[%emt 0:02:29]} 22. Re2 {[%emt 0:00:57]} a4 {[%emt 0:02:12]} 23. a3 {[%emt 0:00:10]} Rc4 {[%emt 0:08:40]} 24. Nf2 {[%emt 0:01:15]} Rfc8 {[%emt 0:01:11]} 25. Rd1 {[%emt 0:01:35]} Qb3 {[%emt 0:03:47]} 26. Red2 {[%emt 0:00:33]} b5 {[%emt 0:00:41]} 27. Nd3 {[%emt 0:01:14]} R4c7 {[%emt 0:02:13]} 28. e5 {[%emt 0:08:34]} Bg7 {[%emt 0:01:51]} 29. exd6 {[%emt 0:01:49]} exd6 {[%emt 0:00:01]} 30. Nc1 {[%emt 0:00:57]} Qc4 {[%emt 0:01:29]} 31. Rxd6 {[%emt 0:00:03]} b4 {[%emt 0:03:33]} 32. axb4 {[%emt 0:00:25]} a3 {[%emt 0:00:03]} 33. bxa3 {[%emt 0:01:03]} Qxc3 {[%emt 0:00:36]} 34. Ne2 {[%emt 0:03:29]} Qb2 {[%emt 0:01:02]} 35. R6d2 {[%emt 0:07:14]} Rc2 {[%emt 0:01:17]} 36. Qd3 {[%emt 0:00:02]} Rxd2 {[%emt 0:00:33]} 37. Rxd2 {[%emt 0:00:02]} Qa1+ {[%emt 0:00:33]} 38. Rd1 {[%emt 0:00:03]} Qb2 {[%emt 0:00:02]} 39. Rb1 {[%emt 0:05:20]} Qc2 {[%emt 0:01:43]} 40. Qxc2 {[%emt 0:07:01]} Rxc2 {[%emt 0:00:01]} 41. Nc1 {[%emt 0:33:08]} Bb2 {[%emt 0:04:13]} 42. Nd3 {[%emt 0:00:00]} Bxa3 {[%emt 0:00:10]} 43. g3 {[%emt 0:00:00]} g5 {[%emt 0:05:21]} 44. Rb3 {[%emt 0:00:00]} Ra2 {[%emt 0:03:47]} 45. b5 {[%emt 0:00:00]} Bd6 {[%emt 0:00:48]} 46. b6 {[%emt 0:00:00]} g4 {[%emt 0:10:52]} 47. b7 {[%emt 0:00:00]} Bb8 {[%emt 0:01:32]} 48. Rc3 {[%emt 0:00:00]} Ra1+ {[%emt 0:01:04]} 49. Kg2 {[%emt 0:00:00]} Ra2+ {[%emt 0:00:08]} 50. Kf1 {[%emt 0:00:00]} Ba7 {[%emt 0:02:05]} 51. Rc8+ {[%emt 0:00:00]} Kg7 {[%emt 0:00:04]} 52. Ra8 {[%emt 0:00:00]} Ra1+ {[%emt 0:01:07]} 53. Ke2 {[%emt 0:00:00]} Ra2+ {[%emt 0:00:22]} 54. Kd1 {[%emt 0:00:00]} 1-0

[Event "WTCC-50 2018"]
[Site "Radebeul"]
[Date "2018.07.11"]
[Round "5"]
[White "Obers, Frits"]
[Black "Polster, Wolfgang"]
[Result "1/2-1/2"]
[ECO "A10"]
[WhiteElo "2113"]
[BlackElo "2203"]
[Annotator "NA"]
[PlyCount "78"]
[EventDate "2018.07.07"]
[EventType "team-tourn"]
[EventCountry "GER"]
[SourceTitle "playchess.com"]
[Source "ChessBase"]
[SourceQuality "1"]
[TimeControl "40/5400+30:1800+30"]

1. c4 {[%emt 0:00:00]} f5 {[%emt 0:00:00]} 2. g3 {[%emt 0:00:00]} g6 {[%emt 0:00:03]} 3. Bg2 {[%emt 0:00:00]} Bg7 {[%emt 0:00:21]} 4. Nc3 {[%emt 0:00:03]} Nc6 {[%emt 0:00:57]} 5. d3 {[%emt 0:00:21]} d6 {[%emt 0:00:00]} 6. e4 {[%emt 0:00:20]} Nh6 {[%emt 0:00:27]} 7. Nge2 {[%emt 0:00:14]} O-O {[%emt 0:00:50]} 8. O-O {[%emt 0:00:10]} e5 {[%emt 0:00:30]} 9. Nd5 {[%emt 0:00:45]} Be6 {[%emt 0:03:29]} 10. f3 {[%emt 0:02:11]} g5 {[%emt 0:06:38]} 11. exf5 {[%emt 0:03:24]} Nxf5 {[%emt 0:00:53]} 12. Ne3 {[%emt 0:03:07]} Nfe7 {[%emt 0:04:47]} 13. b3 {[%emt 0:01:05]} h6 {[%emt 0:06:01]} 14. Bb2 {[%emt 0:00:30]} Nd4 {[%emt 0:00:37]} 15. Nc2 {[%emt 0:04:02]} c5 {[%emt 0:07:20]} 16. f4 {[%emt 0:12:01]} gxf4 {[%emt 0:04:08]} 17. Bxd4 {[%emt 0:07:46]} cxd4 {[%emt 0:01:19]} 18. gxf4 {[%emt 0:00:15]} Nc6 {[%emt 0:03:13]} 19. fxe5 {[%emt 0:03:11]} dxe5 {[%emt 0:02:07]} 20. Rxf8+ {[%emt 0:02:07]} Qxf8 {[%emt 0:00:51]} 21. Ng3 {[%emt 0:00:45]} Qf7 {[%emt 0:03:18]} 22. Qe2 {[%emt 0:00:42]} Qg6 {[%emt 0:06:19]} 23. Rf1 {[%emt 0:02:10]} Rf8 {[%emt 0:01:42]} 24. Rxf8+ {[%emt 0:01:50]} Kxf8 {[%emt 0:00:20]} 25. b4 {[%emt 0:04:26]} Nd8 {[%emt 0:02:40]} 26. a4 {[%emt 0:02:55]} b6 {[%emt 0:03:13]} 27. Ne1 {[%emt 0:04:55]} Bd7 {[%emt 0:02:50]} 28. b5 {[%emt 0:01:34]} Ne6 {[%emt 0:04:32]} 29. Qf3+ {[%emt 0:00:30]} Nf4 {[%emt 0:00:27]} 30. Qa8+ {[%emt 0:01:45]} Ke7 {[%emt 0:00:14]} 31. Be4 {[%emt 0:03:10]} Nh3+ {[%emt 0:00:28]} 32. Kg2 {[%emt 0:01:21]} Qg5 {[%emt 0:02:07]} 33. Nf3 {[%emt 0:03:58]} Qc1 {[%emt 0:05:30]} 34. Nf5+ {[%emt 0:02:02]} Bxf5 {[%emt 0:00:48]} 35. Bxf5 {[%emt 0:00:48]} Nf4+ {[%emt 0:00:29]} 36. Kg3 {[%emt 0:02:03]} Nh5+ {[%emt 0:16:41]} 37. Kh3 {[%emt 0:10:45]} Nf4+ {[%emt 0:03:50]} 38. Kg3 {[%emt 0:00:18]} Nh5+ {[%emt 0:00:07]} 39. Kh3 {[%emt 0:00:10]} Nf4+ 1/2-1/2

[Event "WTCC-50 2018"]
[Site "Radebeul"]
[Date "2018.07.11"]
[Round "5"]
[White "Scheckenbach, Franz"]
[Black "Tischbierek, Raj"]
[Result "0-1"]
[ECO "B20"]
[WhiteElo "2106"]
[BlackElo "2436"]
[Annotator "NA"]
[PlyCount "64"]
[EventDate "2018.07.07"]
[EventType "team-tourn"]
[EventCountry "GER"]
[SourceTitle "playchess.com"]
[Source "ChessBase"]
[SourceQuality "1"]
[TimeControl "40/5400+30:1800+30"]

1. e4 {[%emt 0:00:00]} c5 {[%emt 0:00:00]} 2. d3 {[%emt 0:00:28]} Nc6 {[%emt 0:00:52]} 3. f4 {[%emt 0:00:18]} g6 {[%emt 0:01:17]} 4. Nf3 {[%emt 0:00:09]} Bg7 {[%emt 0:00:04]} 5. Be2 {[%emt 0:00:23]} d6 {[%emt 0:00:55]} 6. O-O {[%emt 0:01:30]} e6 {[%emt 0:03:00]} 7. Qe1 {[%emt 0:02:47]} Nge7 {[%emt 0:02:46]} 8. Nc3 {[%emt 0:01:37]} Nd4 {[%emt 0:03:33]} 9. Bd1 {[%emt 0:01:46]} O-O {[%emt 0:01:02]} 10. f5 {[%emt 0:07:28]} exf5 {[%emt 0:07:02]} 11. Qh4 {[%emt 0:00:59]} Nec6 {[%emt 0:12:25]} 12. Bg5 {[%emt 0:01:04]} f6 {[%emt 0:00:07]} 13. Bd2 {[%emt 0:18:30]} g5 {[%emt 0:04:43]} 14. Qf2 {[%emt 0:02:33]} Nxf3+ {[%emt 0:01:16]} 15. Bxf3 {[%emt 0:09:15]} f4 {[%emt 0:00:12]} 16. Nd5 {[%emt 0:02:01]} Be6 {[%emt 0:03:34]} 17. c3 {[%emt 0:04:09]} Qd7 {[%emt 0:01:33]} 18. d4 {[%emt 0:06:39]} cxd4 {[%emt 0:03:19]} 19. cxd4 {[%emt 0:00:08]} f5 {[%emt 0:02:25]} 20. Bc3 {[%emt 0:03:43]} Bxd5 {[%emt 0:04:59]} 21. exd5 {[%emt 0:00:11]} Ne7 {[%emt 0:00:24]} 22. Rfe1 {[%emt 0:04:50]} Kh8 {[%emt 0:05:16]} 23. Qe2 {[%emt 0:03:06]} Rae8 {[%emt 0:03:48]} 24. Bh5 {[%emt 0:05:31]} Ng6 {[%emt 0:01:12]} 25. Qc4 {[%emt 0:00:18]} Re3 {[%emt 0:02:35]} 26. Re2 {[%emt 0:11:55]} Rfe8 {[%emt 0:03:57]} 27. Rae1 {[%emt 0:00:30]} R8e4 {[%emt 0:03:43]} 28. Bf3 {[%emt 0:03:08]} Ne5 {[%emt 0:01:02]} 29. Qb3 {[%emt 0:05:33]} Nxf3+ {[%emt 0:00:25]} 30. gxf3 {[%emt 0:00:05]} Rxe2 {[%emt 0:03:22]} 31. fxe4 {[%emt 0:00:11]} Rxe1+ {[%emt 0:00:30]} 32. Bxe1 {[%emt 0:00:10]} fxe4 {[%emt 0:00:20]} 0-1

[Event "WTCC-50 2018"]
[Site "Radebeul"]
[Date "2018.07.11"]
[Round "5"]
[White "Fraser-Mitchell, Jeremy N"]
[Black "Strutinskaia, Galina"]
[Result "0-1"]
[ECO "A40"]
[WhiteElo "2060"]
[BlackElo "2221"]
[Annotator "NA"]
[PlyCount "102"]
[EventDate "2018.07.07"]
[EventType "team-tourn"]
[EventCountry "GER"]
[SourceTitle "playchess.com"]
[Source "ChessBase"]
[SourceQuality "1"]
[TimeControl "40/5400+30:1800+30"]

1. d4 {[%emt 0:00:00]} e6 {[%emt 0:00:00]} 2. c4 {[%emt 0:00:07]} b6 {[%emt 0:00:00]} 3. Nc3 {[%emt 0:00:29]} Bb7 {[%emt 0:00:00]} 4. e4 {[%emt 0:00:12]} Bb4 {[%emt 0:00:46]} 5. Bd3 {[%emt 0:00:27]} Ne7 {[%emt 0:04:41] A40: Unusual replies to 1 d4} (5... f5 6. Qh5+ g6 7. Qe2 Nf6 8. Bg5 fxe4 9. Bc2 h6 10. Bxf6 Qxf6 11. Bxe4 Nc6 12. Nf3 O-O-O 13. O-O Nxd4 14. Nxd4 Qxd4 15. Rad1 Qf6 16. Bxb7+ Kxb7 {0-1 (75) Dzagnidze,N (2570)-Hou,Y (2673) Beijing 2014}) 6. Nf3 {[%emt 0:00:58]} Bxc3+ {[%emt 0:03:05]} 7. bxc3 {[%emt 0:00:07]} d6 {[%emt 0:00:21]} 8. O-O {[%emt 0:00:28]} Nd7 {[%emt 0:00:18]} 9. Re1 $146 {[%emt 0:03:04]} ({Predecessor:} 9. Bf4 Ng6 10. Bg3 Qe7 11. Nd2 e5 12. Bc2 h5 13. h3 {0-1 (51) Djukic,S-Von Wantoch Rekowski,D (2095) Tivat 2001}) 9... e5 {[%emt 0:00:32]} 10. Rb1 {[%emt 0:12:19]} Ng6 {[%emt 0:02:28]} 11. Be3 {[%emt 0:14:25]} O-O {[%emt 0:03:13]} 12. Rb2 {[%emt 0:07:28]} Qe7 {[%emt 0:02:05]} 13. Nd2 {[%emt 0:08:16]} Rfe8 {[%emt 0:07:58]} 14. f3 {[%emt 0:02:30]} Ndf8 {[%emt 0:05:49]} 15. d5 {[%emt 0:08:22]} Nd7 {[%emt 0:03:46]} 16. Nb3 {[%emt 0:00:41]} Bc8 {[%emt 0:02:55]} 17. Bf1 {[%emt 0:03:07]} a5 {[%emt 0:00:54]} 18. g3 {[%emt 0:01:34]} a4 {[%emt 0:02:30]} 19. Nc1 {[%emt 0:00:45]} Nc5 {[%emt 0:00:23]} 20. Nd3 {[%emt 0:02:05]} Nb7 {[%emt 0:02:57]} 21. Nf2 {[%emt 0:07:31]} Bd7 {[%emt 0:01:09]} 22. Bh3 {[%emt 0:02:05]} a3 {[%emt 0:09:33]} 23. Rb4 {[%emt 0:02:21]} Ra5 {[%emt 0:05:08]} 24. Bxd7 {[%emt 0:00:25]} Qxd7 {[%emt 0:00:02]} 25. Qe2 {[%emt 0:01:11]} Nc5 {[%emt 0:07:07]} 26. Nd1 {[%emt 0:00:54]} f5 {[%emt 0:08:49]} 27. Nf2 {[%emt 0:04:16]} f4 {[%emt 0:01:39]} 28. Bd2 {[%emt 0:01:42]} Rf8 {[%emt 0:04:36]} 29. Kg2 {[%emt 0:01:24]} h5 {[%emt 0:00:32]} 30. Nd3 {[%emt 0:01:31]} Nxd3 {[%emt 0:03:18]} 31. Qxd3 {[%emt 0:00:01]} Rf6 {[%emt 0:00:17]} 32. Rh1 {[%emt 0:01:11]} Ra8 {[%emt 0:00:22]} 33. Rbb1 {[%emt 0:00:14]} Nf8 {[%emt 0:03:21]} 34. Bc1 {[%emt 0:02:58]} Nh7 {[%emt 0:00:23]} 35. gxf4 {[%emt 0:02:21]} Rg6+ {[%emt 0:01:39]} 36. Kf2 {[%emt 0:00:06]} Qh3 {[%emt 0:00:12]} 37. Qf1 {[%emt 0:00:11]} Qh4+ {[%emt 0:00:17]} 38. Ke2 {[%emt 0:00:22]} exf4 {[%emt 0:00:12]} 39. Bd2 {[%emt 0:03:21]} Nf8 {[%emt 0:07:51]} 40. Qf2 {[%emt 0:01:00]} Qf6 {[%emt 0:01:06]} 41. Rhg1 {[%emt 0:30:36]} Ra4 {[%emt 0:30:33]} 42. Rb3 {[%emt 0:03:46]} Rxg1 {[%emt 0:01:37]} 43. Qxg1 {[%emt 0:00:04]} Nd7 {[%emt 0:00:28]} 44. Qc1 {[%emt 0:02:24]} g5 {[%emt 0:02:29]} 45. Rxa3 {[%emt 0:02:14]} Rxc4 {[%emt 0:00:31]} 46. Ra8+ {[%emt 0:00:00]} Kh7 {[%emt 0:00:00]} 47. Qa3 {[%emt 0:00:00]} g4 {[%emt 0:00:00]} 48. Qa6 {[%emt 0:00:00]} gxf3+ {[%emt 0:00:00]} 49. Kf1 {[%emt 0:00:00]} Qg7 {[%emt 0:00:00]} 50. Qxc4 $19 {[%emt 0:00:00]} Qg2+ {[%emt 0:00:00]} 51. Ke1 {[%emt 0:00:00]} f2+ {[%emt 0:00:00]} 0-1

[Event "WTCC-50 2018"]
[Site "Radebeul"]
[Date "2018.07.11"]
[Round "5"]
[White "Homer, Stephen J"]
[Black "Fatalibekova, Elena"]
[Result "1-0"]
[ECO "B33"]
[WhiteElo "2020"]
[BlackElo "2195"]
[Annotator "NA"]
[PlyCount "73"]
[EventDate "2018.07.07"]
[EventType "team-tourn"]
[EventCountry "GER"]
[SourceTitle "playchess.com"]
[Source "ChessBase"]
[SourceQuality "1"]
[TimeControl "40/5400+30:1800+30"]

1. e4 {[%emt 0:00:00]} c5 {[%emt 0:00:00]} 2. Nf3 {[%emt 0:00:00]} e6 {[%emt 0:00:00]} 3. d4 {[%emt 0:11:13]} cxd4 {[%emt 0:00:00]} 4. Nxd4 {[%emt 0:00:02]} Nf6 {[%emt 0:00:32]} 5. Nc3 {[%emt 0:01:16]} Nc6 {[%emt 0:00:24]} 6. Ndb5 {[%emt 0:12:28]} d6 {[%emt 0:00:57]} 7. Bf4 {[%emt 0:00:06]} e5 {[%emt 0:00:04]} 8. Bg5 {[%emt 0:00:03]} a6 {[%emt 0:00:06]} 9. Na3 {[%emt 0:00:10]} b5 {[%emt 0:01:16]} 10. Nd5 {[%emt 0:00:02]} Be7 {[%emt 0:00:21]} 11. Bxf6 {[%emt 0:00:56]} Bxf6 {[%emt 0:00:09]} 12. c4 {[%emt 0:04:57]} b4 {[%emt 0:07:48]} 13. Nc2 {[%emt 0:00:07]} a5 {[%emt 0:03:46]} 14. Be2 {[%emt 0:01:17]} Bg5 {[%emt 0:00:29]} 15. O-O {[%emt 0:00:43]} O-O {[%emt 0:00:08]} 16. Qd3 {[%emt 0:02:46]} Be6 {[%emt 0:05:33]} 17. Rad1 {[%emt 0:01:44]} f5 {[%emt 0:00:14]} 18. Bf3 {[%emt 0:01:10]} f4 {[%emt 0:01:29]} 19. a3 {[%emt 0:04:56]} bxa3 {[%emt 0:07:19]} 20. Nxa3 {[%emt 0:12:18]} Nd4 {[%emt 0:00:27]} 21. Nb5 {[%emt 0:04:39]} Bxd5 {[%emt 0:19:46]} 22. Nxd4 {[%emt 0:00:33]} exd4 {[%emt 0:00:29]} 23. exd5 {[%emt 0:01:33]} Bf6 {[%emt 0:00:13]} 24. Rfe1 {[%emt 0:07:46]} Qb6 {[%emt 0:02:33]} 25. Re6 {[%emt 0:03:39]} a4 {[%emt 0:01:05]} 26. Be4 {[%emt 0:03:54]} h6 {[%emt 0:01:24]} 27. Qh3 {[%emt 0:02:18]} Qb3 {[%emt 0:10:26]} 28. Qg4 {[%emt 0:04:12]} f3 {[%emt 0:05:43]} 29. Re1 {[%emt 0:05:03]} g5 {[%emt 0:15:01]} 30. Qf5 {[%emt 0:00:52]} Ra7 {[%emt 0:03:52]} 31. Rxf6 {[%emt 0:00:19]} Rxf6 {[%emt 0:00:30]} 32. Qxf6 {[%emt 0:00:37]} Qxb2 {[%emt 0:01:33]} 33. Bd3 {[%emt 0:03:07]} Qb8 {[%emt 0:01:32]} 34. Qg6+ {[%emt 0:00:50]} Kf8 {[%emt 0:00:41]} 35. Re6 {[%emt 0:01:33]} Rg7 {[%emt 0:00:58]} 36. Qxh6 {[%emt 0:01:29]} Kg8 {[%emt 0:08:59]} 37. Qh5 {[%emt 0:00:28]} 1-0

[Event "WTCC-50 2018"]
[Site "Radebeul"]
[Date "2018.07.11"]
[Round "5"]
[White "Jhunjhnuwala, Suresh"]
[Black "Ernst, Michael"]
[Result "1/2-1/2"]
[ECO "C01"]
[WhiteElo "1880"]
[BlackElo "2156"]
[Annotator "NA"]
[PlyCount "80"]
[EventDate "2018.07.07"]
[EventType "team-tourn"]
[EventCountry "GER"]
[SourceTitle "playchess.com"]
[Source "ChessBase"]
[SourceQuality "1"]
[TimeControl "40/5400+30:1800+30"]

1. e4 {[%emt 0:00:00]} e6 {[%emt 0:00:00]} 2. d4 {[%emt 0:00:00]} d5 {[%emt 0:00:00]} 3. exd5 {[%emt 0:00:00]} exd5 {[%emt 0:00:00]} 4. Bd3 {[%emt 0:00:01]} Nc6 {[%emt 0:00:45]} 5. c3 {[%emt 0:00:03]} Bd6 {[%emt 0:00:24]} 6. h3 {[%emt 0:00:06]} Nge7 {[%emt 0:00:33]} 7. Nf3 {[%emt 0:00:53]} Bf5 {[%emt 0:03:38]} 8. O-O {[%emt 0:02:02]} Qd7 {[%emt 0:01:59]} 9. Bxf5 {[%emt 0:00:45]} Qxf5 {[%emt 0:00:24]} 10. Re1 {[%emt 0:00:55]} O-O {[%emt 0:00:30]} 11. Nbd2 {[%emt 0:01:13]} Rae8 {[%emt 0:04:36]} 12. Nf1 {[%emt 0:01:00]} Nd8 {[%emt 0:03:46]} 13. Qa4 {[%emt 0:05:29]} Ndc6 {[%emt 0:17:05]} 14. Qb3 {[%emt 0:05:03]} b6 {[%emt 0:02:53]} 15. Qa4 {[%emt 0:05:28]} Qd7 {[%emt 0:01:50]} 16. Bg5 {[%emt 0:07:32]} f6 {[%emt 0:02:52]} 17. Bh4 {[%emt 0:03:13]} Ne5 {[%emt 0:01:42]} 18. Qxd7 {[%emt 0:02:40]} Nxd7 {[%emt 0:02:33]} 19. Bg3 {[%emt 0:00:53]} Nf5 {[%emt 0:00:44]} 20. Bxd6 {[%emt 0:04:05]} Nxd6 {[%emt 0:00:13]} 21. Ne3 {[%emt 0:03:40]} c6 {[%emt 0:00:15]} 22. Re2 Re6 {[%emt 0:02:21]} 23. Rae1 {[%emt 0:04:11]} Rfe8 {[%emt 0:00:06]} 24. Kf1 {[%emt 0:01:10]} Kf7 {[%emt 0:00:12]} 25. Nc2 {[%emt 0:01:44]} a5 {[%emt 0:01:54]} 26. Rxe6 {[%emt 0:01:02]} Rxe6 {[%emt 0:00:03]} 27. Rxe6 {[%emt 0:00:21]} Kxe6 {[%emt 0:00:03]} 28. Ke2 {[%emt 0:00:28]} g5 {[%emt 0:05:18]} 29. g4 {[%emt 0:08:17]} Nc4 {[%emt 0:06:45]} 30. b3 {[%emt 0:01:27]} Nd6 {[%emt 0:00:06]} 31. Nd2 {[%emt 0:16:32]} Nf8 {[%emt 0:00:46]} 32. Ne1 {[%emt 0:00:57]} Ng6 {[%emt 0:01:18]} 33. Nd3 {[%emt 0:00:12]} Ne4 {[%emt 0:06:03]} 34. Nb1 {[%emt 0:02:26]} f5 {[%emt 0:05:12]} 35. f3 {[%emt 0:01:22]} Nf6 {[%emt 0:00:07]} 36. Nd2 {[%emt 0:01:30]} h5 {[%emt 0:00:16]} 37. Nf2 {[%emt 0:05:44]} Nf4+ {[%emt 0:05:36]} 38. Ke3 {[%emt 0:02:45]} Ng2+ {[%emt 0:06:06]} 39. Ke2 {[%emt 0:00:52]} Nf4+ {[%emt 0:00:05]} 40. Ke3 {[%emt 0:00:16]} Ng2+ {Ke4 Ke5+} 1/2-1/2